lending/lending_fUSD_20250131
["ID","MTS","AMOUNT","RATE_DAILY","PERIOD"]
[351079960,1738326660966,-500.0,0.00016849,2]
[351079961,1738326660976,-1084.81,0.00016849,2]
[351079962,1738326660985,-1010.59,0.00016849,2]
[351079963,1738326660995,-2002.74,0.00016849,2]
[351079964,1738326661004,-500.0,0.00016849,2]
[351079965,1738326661013,-500.0,0.00016849,2]
[351079966,1738326661023,-2663.05,0.00016849,2]
[351079967,1738326661032,-5797.26,0.00016849,2]
[351079968,1738326661042,-594.92,0.00016849,2]
[351079969,1738326661051,-526.98,0.00016849,2]
[351079970,1738326661060,-892.3,0.00016849,2]
[351079971,1738326661070,-500.0,0.00016849,2]
[351079972,1738326661080,-1125.38,0.00016849,2]
[351079973,1738326661089,-1337.93,0.00016849,2]
[351079974,1738326661098,-500.0,0.00016849,2]
[351079975,1738326661107,-2132.23,0.00016849,2]
[351079976,1738326661116,-1191.17,0.00016849,2]
[351079977,1738326661125,-1970.85,0.00016849,2]
[351079978,1738326661134,-1053.46,0.00016849,2]
[351079979,1738326661143,-500.0,0.00016849,2]
[351079980,1738326661152,-823.99,0.00016849,2]
[351079981,1738326661161,-500.0,0.00016849,2]
[351079982,1738326661171,-154.135675,0.00016849,2]
[351079983,1738326661181,-2411.93,0.00016849,2]
[351079984,1738326661190,-2217.35,0.00016849,2]
[351079985,1738326661201,-500.0,0.00016849,2]
[351079986,1738326661210,-500.0,0.00016849,2]
[351079987,1738326661220,-605.23,0.00016849,2]
[351079988,1738326661229,-1042.88,0.00016849,2]
[351079989,1738326661238,-500.0,0.00016849,2]
[351079990,1738326661248,-500.0,0.00016849,2]
[351079991,1738326661257,-1176.72,0.00016849,2]
[351079992,1738326661267,-557.11296448,0.00016849,2]
[351079993,1738326661276,-500.0,0.00016849,2]
[351079994,1738326661285,-1715.86,0.00016849,2]
[351079995,1738326661294,-2038.46,0.00016849,2]
[351079996,1738326661303,-827.6,0.00016849,2]
[351079997,1738326661312,-1855.9,0.00016849,2]
[351079998,1738326661322,-783.11,0.00016849,2]
[351079999,1738326661331,-500.0,0.00016849,2]
[351080000,1738326661340,-969.33,0.00016849,2]
[351080001,1738326661350,-4237.1,0.00016849,2]
[351080002,1738326661361,-2016.11,0.00016849,2]
[351080003,1738326661373,-1584.44,0.00016849,2]
[351080004,1738326661383,-2479.22,0.00016849,2]
[351080005,1738326661394,-969.44,0.00016849,2]
[351080006,1738326661404,-500.0,0.00016849,2]
[351080007,1738326661413,-500.0,0.00016849,2]
[351080008,1738326661423,-151.0,0.00016849,2]
[351080009,1738326661432,-1149.85,0.00016849,2]
[351080010,1738326661443,-696.96,0.00016849,2]
[351080011,1738326661452,-500.0,0.00016849,2]
[351080012,1738326661462,-886.2,0.00016849,2]
[351080013,1738326661471,-500.0,0.00016849,2]
[351080014,1738326661481,-661.24,0.00016849,2]
[351080015,1738326661491,-1340.07,0.00016849,2]
[351080016,1738326661502,-2614.22,0.00016849,2]
[351080017,1738326661512,-1592.05,0.00016849,2]
[351080018,1738326661521,-784.0,0.00016849,2]
[351080019,1738326661531,-861.37,0.00016849,2]
[351080020,1738326661540,-151.0,0.00016849,2]
[351080021,1738326661549,-1234.21,0.00016849,2]
[351080022,1738326661559,-2093.55,0.00016849,2]
[351080023,1738326661568,-545.78,0.00016849,2]
[351080024,1738326661578,-3893.5,0.00016849,2]
[351080025,1738326661587,-1871.92,0.00016849,2]
[351080026,1738326661597,-1079.17,0.00016849,2]
[351080027,1738326661606,-500.0,0.00016849,2]
[351080028,1738326661615,-500.0,0.00016849,2]
[351080029,1738326661624,-1844.16,0.00016849,2]
[351080030,1738326661633,-3833.57,0.00016849,2]
[351080031,1738326661643,-500.0,0.00016849,2]
[351080032,1738326661652,-151.0,0.00016849,2]
[351080033,1738326661661,-2514.61,0.00016849,2]
[351080034,1738326661670,-1436.42,0.00016849,2]
[351080035,1738326661679,-5425.93,0.00016849,2]
[351080036,1738326661689,-2515.19,0.00016849,2]
[351080037,1738326661698,-514.25010213,0.00016849,2]
[351080038,1738326661707,-964.92,0.00016849,2]
[351080039,1738326661982,-2939.07,0.00016849,2]
[351080040,1738326661995,-575.33,0.00016849,2]
[351080041,1738326662005,-790.69,0.00016849,2]
[351080042,1738326662014,-2587.16,0.00016849,2]
[351080043,1738326662023,-500.0,0.00016849,2]
[351080044,1738326662033,-1685.54,0.00016849,2]
[351080045,1738326662043,-2582.85,0.00016849,2]
[351080046,1738326662054,-778.72,0.00016849,2]
[351080047,1738326662064,-500.0,0.00016849,2]
[351080048,1738326662074,-664.29,0.00016849,2]
[351080049,1738326662084,-1001.24,0.00016849,2]
[351080050,1738326662094,-3094.09,0.00016849,2]
[351080051,1738326662104,-1093.82,0.00016849,2]
[351080052,1738326662114,-5595.54,0.00016849,2]
[351080053,1738326662125,-2985.13,0.00016849,2]
[351080054,1738326662135,-6586.61,0.00016849,2]
[351080055,1738326662144,-1377.98,0.00016849,2]
[351080056,1738326662153,-1362.9,0.00016849,2]
[351080057,1738326662162,-2029.22,0.00016849,2]
[351080058,1738326662171,-1074.97,0.00016849,2]
[351080059,1738326662180,-500.0,0.00016849,2]
[351080060,1738326662189,-512.01,0.00016849,2]
[351080061,1738326662199,-2260.49,0.00016849,2]
[351080062,1738326662208,-2165.14,0.00016849,2]
[351080063,1738326662218,-1351.8,0.00016849,2]
[351080064,1738326662227,-2553.37,0.00016849,2]
[351080065,1738326662236,-1353.16,0.00016849,2]
[351080066,1738326662245,-6719.37,0.00016849,2]
[351080067,1738326662255,-195.30765,0.00016849,2]
[351080068,1738326662263,-747.91,0.00016849,2]
[351080069,1738326662273,-513.37,0.00016849,2]
[351080070,1738326662283,-500.0,0.00016849,2]
[351080071,1738326662293,-500.0,0.00016849,2]
[351080072,1738326662303,-151.0,0.00016849,2]
[351080073,1738326662312,-3385.51,0.00016849,2]
[351080074,1738326662321,-3474.04,0.00016849,2]
[351080075,1738326662331,-511.44402339,0.00016849,2]
[351080076,1738326662340,-2712.92,0.00016849,2]
[351080077,1738326662350,-1171.38,0.00016849,2]
[351080078,1738326662360,-512.74,0.00016849,2]
[351080079,1738326662372,-519.58845162,0.00016849,2]
[351080080,1738326662382,-1656.22,0.00016849,2]
[351080081,1738326662391,-1032.79,0.00016849,2]
[351080082,1738326662401,-500.0,0.00016849,2]
[351080083,1738326662412,-510.44,0.00016849,2]
[351080084,1738326662429,-6216.19,0.00016849,2]
[351080085,1738326662440,-151.0,0.00016849,2]
[351080086,1738326662452,-500.0,0.00016849,2]
[351080087,1738326662462,-1866.86,0.00016849,2]
[351080088,1738326662472,-732.56,0.00016849,2]
[351080089,1738326662483,-2228.14,0.00016849,2]
[351080090,1738326662493,-2302.38,0.00016849,2]
[351080091,1738326662504,-633.1,0.00016849,2]
[351080092,1738326662514,-500.0,0.00016849,2]
[351080093,1738326662524,-1437.37,0.00016849,2]
[351080094,1738326662534,-3166.28,0.00016849,2]
[351080095,1738326662544,-2832.15,0.00016849,2]
[351080096,1738326662553,-1313.22,0.00016849,2]
[351080097,1738326662563,-500.0,0.00016849,2]
[351080098,1738326662573,-2083.98,0.00016849,2]
[351080099,1738326662583,-608.64769462,0.00016849,2]
[351080100,1738326662594,-4544.39,0.00016849,2]
[351080101,1738326662604,-1915.53,0.00016849,2]
[351080102,1738326662614,-4066.08,0.00016849,2]
[351080103,1738326662624,-174.34258423,0.00016849,2]
[351080104,1738326662634,-946.4,0.00016849,2]
[351080105,1738326662643,-500.0,0.00016849,2]
[351080106,1738326662653,-500.0,0.00016849,2]
[351080107,1738326662663,-893.28,0.00016849,2]
[351080108,1738326662673,-710.96,0.00016849,2]
[351080109,1738326662683,-10975.61,0.00016849,2]
[351080110,1738326662695,-500.0,0.00016849,2]
[351080111,1738326662704,-890.65,0.00016849,2]
[351080112,1738326662714,-1210.85,0.00016849,2]
[351080113,1738326662723,-151.0,0.00016849,2]
[351080114,1738326662733,-12807.63,0.00016849,2]
[351080115,1738326662742,-6528.92,0.00016849,2]
[351080116,1738326662754,-1476.65,0.00016849,2]
[351080117,1738326662764,-500.0,0.00016849,2]
[351080118,1738326662774,-500.0,0.00016849,2]
[351080119,1738326662784,-5108.04,0.00016849,2]
[351080120,1738326662794,-1987.9,0.00016849,2]
[351080121,1738326662804,-500.0,0.00016849,2]
[351080122,1738326662814,-1082.85,0.00016849,2]
[351080123,1738326662825,-239.74717548,0.00016849,2]
[351080124,1738326662836,-1419.61,0.00016849,2]
[351080125,1738326662846,-585.69,0.00016849,2]
[351080126,1738326662856,-259.51,0.00016849,2]
[351080127,1738326662866,-700.0,0.000169,6]
[351080128,1738326662877,-1164.0,0.000169,2]
[351080129,1738326662887,-190.74008483,0.000169,2]
[351080130,1738326662898,-500.0,0.000169,2]
[351080131,1738326662909,-1727.66327917,0.00016936,2]
[351080132,1738326662920,-501.05,0.00016985,2]
[351080133,1738326662929,-1009.11,0.00016985,2]
[351080134,1738326662939,-1009.11,0.00016985,2]
[351080135,1738326662949,-869.239506,0.00016986,2]
[351080136,1738326662959,-500.0,0.00016986,2]
[351080137,1738326662969,-500.0,0.00016986,2]
[351080138,1738326662979,-500.0,0.00016986,2]
[351080139,1738326662988,-500.0,0.00016986,2]
[351080140,1738326662999,-1361.72118,0.00016986,2]
[351080141,1738326663008,-500.0,0.00016986,2]
[351080142,1738326663018,-500.0,0.00016986,2]
[351080143,1738326663028,-500.0,0.00016986,2]
[351080144,1738326663038,-500.0,0.00016986,2]
[351080145,1738326663048,-500.0,0.00016986,2]
[351080146,1738326663058,-500.0,0.00016986,2]
[351080147,1738326663068,-523.62,0.00016986,2]
[351080148,1738326663077,-160.28459236,0.00016986,2]
[351080149,1738326663087,-500.0,0.00016986,2]
[351080150,1738326663096,-500.0,0.00016986,2]
[351080151,1738326663106,-500.0,0.00016986,2]
[351080152,1738326663116,-500.0,0.00016986,2]
[351080153,1738326663125,-500.0,0.00016986,2]
[351080154,1738326663136,-500.0,0.00016986,2]
[351080155,1738326663145,-658.86,0.00016986,2]
[351080156,1738326663155,-500.0,0.00016986,2]
[351080157,1738326663165,-500.0,0.00016986,2]
[351080158,1738326663175,-500.0,0.00016986,2]
[351080159,1738326663185,-500.0,0.00016986,2]
[351080160,1738326663195,-500.0,0.00016986,2]
[351080161,1738326663205,-706.56,0.00016986,2]
[351080162,1738326663214,-500.0,0.00016986,2]
[351080163,1738326663224,-731.02,0.00016986,2]
[351080164,1738326663234,-500.0,0.00016986,2]
[351080165,1738326663244,-500.0,0.00016986,2]
[351080166,1738326663256,-216.44,0.00016986,2]
[351080167,1738326663272,-500.0,0.00016986,2]
[351080168,1738326663282,-500.0,0.00016986,2]
[351080169,1738326663291,-500.0,0.00016986,2]
[351080170,1738326663301,-500.0,0.00016986,2]
[351080171,1738326663311,-500.0,0.00016986,2]
[351080172,1738326663320,-500.0,0.00016986,2]
[351080173,1738326663330,-807.59,0.00016986,2]
[351080174,1738326663340,-500.0,0.00016986,2]
[351080175,1738326663349,-500.0,0.00016986,2]
[351080176,1738326663359,-569.61,0.00016986,2]
[351080177,1738326663371,-500.0,0.00016986,2]
[351080178,1738326663381,-514.74,0.00016986,2]
[351080179,1738326663391,-500.0,0.00016986,2]
[351080180,1738326663401,-500.0,0.00016986,2]
[351080181,1738326663411,-500.0,0.00016986,2]
[351080182,1738326663422,-1401.31,0.00016986,2]
[351080183,1738326663431,-500.0,0.00016986,2]
[351080184,1738326663441,-500.0,0.00016986,2]
[351080185,1738326663451,-500.0,0.00016986,2]
[351080186,1738326663461,-790.91,0.00016986,2]
[351080187,1738326663471,-500.0,0.00016986,2]
[351080188,1738326663481,-516.69188497,0.00016986,2]
[351080189,1738326663491,-500.0,0.00016986,2]
[351080190,1738326663502,-1667.8,0.00016986,2]
[351080191,1738326663511,-500.0,0.00016986,2]
[351080192,1738326663520,-1045.53,0.00016986,2]
[351080193,1738326663530,-500.0,0.00016986,2]
[351080194,1738326663540,-500.0,0.00016986,2]
[351080195,1738326663550,-500.0,0.00016986,2]
[351080196,1738326663559,-201.24173594,0.00016986,2]
[351080197,1738326663936,-335.05,0.00016986,2]
[351080198,1738326663967,-33.95826406,0.00016986,2]
[351080199,1738326663977,-1240.4,0.00016986,2]
[351080200,1738326663987,-812.59,0.00016986,2]
[351080201,1738326663997,-500.0,0.00016986,2]
[351080202,1738326664007,-500.0,0.00016986,2]
[351080203,1738326664016,-500.0,0.00016986,2]
[351080204,1738326664026,-500.0,0.00016986,2]
[351080205,1738326664036,-500.0,0.00016986,2]
[351080206,1738326664045,-500.0,0.00016986,2]
[351080207,1738326664055,-500.0,0.00016986,2]
[351080208,1738326664068,-689.6,0.00016986,2]
[351080209,1738326664078,-500.0,0.00016986,2]
[351080210,1738326664089,-500.0,0.00016986,2]
[351080211,1738326664100,-500.0,0.00016986,2]
[351080212,1738326664110,-500.0,0.00016986,2]
[351080213,1738326664120,-910.39,0.00016986,2]
[351080214,1738326664131,-500.0,0.00016986,2]
[351080215,1738326664140,-904.35,0.00016986,2]
[351080216,1738326664149,-689.96,0.00016986,2]
[351080217,1738326664159,-1243.74,0.00016986,2]
[351080218,1738326664169,-500.0,0.00016986,2]
[351080219,1738326664178,-731.84,0.00016986,2]
[351080220,1738326664189,-500.0,0.00016986,2]
[351080221,1738326664199,-513.03433342,0.00016986,2]
[351080222,1738326664208,-500.0,0.00016986,2]
[351080223,1738326664219,-500.0,0.00016986,2]
[351080224,1738326664229,-500.0,0.00016986,2]
[351080225,1738326664238,-1184.32,0.00016986,2]
[351080226,1738326664249,-521.46,0.00016986,2]
[351080227,1738326664258,-500.0,0.00016986,2]
[351080228,1738326664268,-962.35,0.00016986,2]
[351080229,1738326664278,-629.74,0.00016986,2]
[351080230,1738326664287,-500.0,0.00016986,2]
[351080231,1738326664298,-500.0,0.00016986,2]
[351080232,1738326664308,-500.0,0.00016986,2]
[351080233,1738326664318,-733.72,0.00016986,2]
[351080234,1738326664328,-617.27197472,0.00016986,2]
[351080235,1738326664338,-2308.58,0.00016986,2]
[351080236,1738326664348,-639.9,0.00016986,2]
[351080237,1738326664358,-500.0,0.00016986,2]
[351080238,1738326664442,-1198.14,0.00016986,2]
[351080239,1738326664452,-504.46,0.00016986,2]
[351080240,1738326664462,-851.17,0.00016986,2]
[351080241,1738326664472,-500.0,0.00016986,2]
[351080242,1738326664481,-500.0,0.00016986,2]
[351080243,1738326664491,-600.74,0.00016986,2]
[351080244,1738326664501,-500.0,0.00016986,2]
[351080245,1738326664510,-733.21,0.00016986,2]
[351080246,1738326664520,-500.0,0.00016986,2]
[351080247,1738326664529,-333.17006631,0.00016986,2]
[351080248,1738326664538,-579.87,0.00016986,2]
[351080249,1738326664548,-500.0,0.00016986,2]
[351080250,1738326664557,-500.0,0.00016986,2]
[351080251,1738326664566,-500.0,0.00016986,2]
[351080252,1738326664576,-1059.07,0.00016986,2]
[351080253,1738326664585,-500.0,0.00016986,2]
[351080254,1738326664594,-739.89,0.00016986,2]
[351080255,1738326664603,-500.0,0.00016986,2]
[351080256,1738326664612,-500.0,0.00016986,2]
[351080257,1738326664622,-465.38954815,0.00016986,2]
[351080258,1738326664632,-975.26,0.00016986,2]
[351080259,1738326664642,-894.65,0.00016986,2]
[351080260,1738326664652,-623.28,0.00016986,2]
[351080261,1738326664662,-722.08,0.00016986,2]
[351080262,1738326664671,-500.0,0.00016986,2]
[351080263,1738326664682,-662.55,0.00016986,2]
[351080264,1738326664691,-500.0,0.00016986,2]
[351080265,1738326664700,-1568.48,0.00016986,2]
[351080266,1738326664710,-500.0,0.00016986,2]
[351080267,1738326664719,-500.0,0.00016986,2]
[351080268,1738326664728,-581.28,0.00016986,2]
[351080269,1738326664737,-943.51,0.00016986,2]
[351080270,1738326664747,-500.0,0.00016986,2]
[351080271,1738326664756,-500.0,0.00016986,2]
[351080272,1738326664765,-528.65,0.00016986,2]
[351080273,1738326664775,-938.62,0.00016986,2]
[351080274,1738326664784,-782.18,0.00016986,2]
[351080275,1738326664794,-632.4,0.00016986,2]
[351080276,1738326664804,-500.0,0.00016986,2]
[351080277,1738326664813,-500.0,0.00016986,2]
[351080278,1738326664823,-500.0,0.00016986,2]
[351080279,1738326664832,-637.51,0.00016986,2]
[351080280,1738326664842,-500.0,0.00016986,2]
[351080281,1738326664852,-508.46,0.00016986,2]
[351080282,1738326664861,-500.0,0.00016986,2]
[351080283,1738326664871,-531.47,0.00016986,2]
[351080284,1738326664880,-500.0,0.00016986,2]
[351080285,1738326664890,-500.0,0.00016986,2]
[351080286,1738326664899,-1283.01,0.00016986,2]
[351080287,1738326664908,-697.34,0.00016986,2]
[351080288,1738326664918,-1136.87,0.00016986,2]
[351080289,1738326664928,-1343.73,0.00016986,2]
[351080290,1738326664938,-753.65,0.00016986,2]
[351080291,1738326664947,-500.0,0.00016986,2]
[351080292,1738326664957,-500.0,0.00016986,2]
[351080293,1738326664966,-500.0,0.00016986,2]
[351080294,1738326664976,-500.0,0.00016986,2]
[351080295,1738326664985,-599.34,0.00016986,2]
[351080296,1738326664995,-807.7,0.00016986,2]
[351080297,1738326665005,-500.0,0.00016986,2]
[351080298,1738326665014,-750.91,0.00016986,2]
[351080299,1738326665023,-1476.1,0.00016986,2]
[351080300,1738326665032,-500.0,0.00016986,2]
[351080301,1738326665041,-500.0,0.00016986,2]
[351080302,1738326665051,-797.58,0.00016986,2]
[351080303,1738326665060,-742.91,0.00016986,2]
[351080304,1738326665069,-1071.73,0.00016986,2]
[351080305,1738326665079,-531.07,0.00016986,2]
[351080306,1738326665088,-525.8,0.00016986,2]
[351080307,1738326665098,-500.0,0.00016986,2]
[351080308,1738326665107,-645.53595124,0.00016986,2]
[351080309,1738326665116,-500.0,0.00016986,2]
[351080310,1738326665125,-500.0,0.00016986,2]
[351080311,1738326665135,-500.0,0.00016986,2]
[351080312,1738326665144,-726.21,0.00016986,2]
[351080313,1738326665154,-848.51,0.00016986,2]
[351080314,1738326665163,-500.0,0.00016986,2]
[351080315,1738326665172,-500.0,0.00016986,2]
[351080316,1738326665182,-611.63,0.00016986,2]
[351080317,1738326665191,-500.0,0.00016986,2]
[351080318,1738326665201,-500.0,0.00016986,2]
[351080319,1738326665211,-527.41,0.00016986,2]
[351080320,1738326665220,-500.0,0.00016986,2]
[351080321,1738326665229,-773.23,0.00016986,2]
[351080322,1738326665239,-500.0,0.00016986,2]
[351080323,1738326665249,-500.0,0.00016986,2]
[351080324,1738326665258,-534.44,0.00016986,2]
[351080325,1738326665267,-825.72,0.00016986,2]
[351080326,1738326665276,-616.11,0.00016986,2]
[351080327,1738326665287,-500.0,0.00016986,2]
[351080328,1738326665296,-500.0,0.00016986,2]
[351080329,1738326665305,-774.25,0.00016986,2]
[351080330,1738326665314,-653.54,0.00016986,2]
[351080331,1738326665323,-992.13,0.00016986,2]
[351080332,1738326665332,-500.0,0.00016986,2]
[351080333,1738326665342,-500.0,0.00016986,2]
[351080334,1738326665351,-893.92,0.00016986,2]
[351080335,1738326665360,-500.0,0.00016986,2]
[351080336,1738326665371,-151.219778,0.00016986,2]
[351080337,1738326665381,-500.0,0.00016986,2]
[351080338,1738326665390,-500.0,0.00016986,2]
[351080339,1738326665399,-500.0,0.00016986,2]
[351080340,1738326665409,-581.26,0.00016986,2]
[351080341,1738326665418,-500.0,0.00016986,2]
[351080342,1738326665427,-500.0,0.00016986,2]
[351080343,1738326665436,-1372.62,0.00016986,2]
[351080344,1738326665448,-563.57,0.00016986,2]
[351080345,1738326665457,-717.67,0.00016986,2]
[351080346,1738326665467,-778.8,0.00016986,2]
[351080347,1738326665476,-944.3,0.00016986,2]
[351080348,1738326665486,-586.81,0.00016986,2]
[351080349,1738326665496,-687.8,0.00016986,2]
[351080350,1738326665507,-2619.13,0.00016986,2]
[351080351,1738326665517,-500.0,0.00016986,2]
[351080352,1738326665526,-500.0,0.00016986,2]
[351080353,1738326665536,-738.82,0.00016986,2]
[351080354,1738326665545,-708.5,0.00016986,2]
[351080355,1738326665554,-854.04,0.00016986,2]
[351080356,1738326665563,-1836.98,0.00016986,2]
[351080357,1738326665573,-1220.54,0.00016986,2]
[351080358,1738326665582,-843.1,0.00016986,2]
[351080359,1738326665592,-550.36,0.00016986,2]
[351080360,1738326665601,-1314.37,0.00016986,2]
[351080361,1738326665610,-500.0,0.00016986,2]
[351080362,1738326665620,-908.51,0.00016986,2]
[351080363,1738326665629,-500.0,0.00016986,2]
[351080364,1738326665639,-862.58,0.00016986,2]
[351080365,1738326665648,-500.0,0.00016986,2]
[351080366,1738326665657,-1105.52,0.00016986,2]
[351080367,1738326665667,-773.46,0.00016986,2]
[351080368,1738326665676,-693.93,0.00016986,2]
[351080369,1738326665686,-594.11,0.00016986,2]
[351080370,1738326665696,-4624.11,0.00016986,2]
[351080371,1738326665706,-1712.74,0.00016986,2]
[351080372,1738326665715,-3138.2,0.00016986,2]
[351080373,1738326665724,-500.0,0.00016986,2]
[351080374,1738326665734,-151.219778,0.00016986,2]
[351080375,1738326665743,-1334.53,0.00016986,2]
[351080376,1738326665754,-544.98,0.00016986,2]
[351080377,1738326665763,-1396.15,0.00016986,2]
[351080378,1738326665773,-1336.46,0.00016986,2]
[351080379,1738326665782,-500.0,0.00016986,2]
[351080380,1738326665792,-690.6,0.00016986,2]
[351080381,1738326665801,-500.0,0.00016986,2]
[351080382,1738326665810,-733.19,0.00016986,2]
[351080383,1738326665819,-6860.94,0.00016986,2]
[351080384,1738326665828,-500.0,0.00016986,2]
[351080385,1738326665838,-609.97,0.00016986,2]
[351080386,1738326665847,-1196.9,0.00016986,2]
[351080387,1738326665857,-500.0,0.00016986,2]
[351080388,1738326665866,-849.45,0.00016986,2]
[351080389,1738326665875,-500.0,0.00016986,2]
[351080390,1738326665885,-2457.42,0.00016986,2]
[351080391,1738326665894,-982.87,0.00016986,2]
[351080392,1738326665904,-500.0,0.00016986,2]
[351080393,1738326665914,-1442.05,0.00016986,2]
[351080394,1738326665923,-943.84,0.00016986,2]
[351080395,1738326665933,-2083.65,0.00016986,2]
[351080396,1738326665943,-154.135675,0.00016986,2]
[351080397,1738326665952,-500.0,0.00016986,2]
[351080398,1738326665961,-500.0,0.00016986,2]
[351080399,1738326665971,-4027.64,0.00016986,2]
[351080400,1738326665980,-1015.62,0.00016986,2]
[351080401,1738326665990,-867.63,0.00016986,2]
[351080402,1738326666001,-1382.17,0.00016986,2]
[351080403,1738326666010,-876.78,0.00016986,2]
[351080404,1738326666019,-955.62,0.00016986,2]
[351080405,1738326666030,-879.0,0.00016986,2]
[351080406,1738326666039,-943.84,0.00016986,2]
[351080407,1738326666048,-1445.88,0.00016986,2]
[351080408,1738326666058,-554.03,0.00016986,2]
[351080409,1738326666068,-2222.76,0.00016986,2]
[351080410,1738326666078,-1045.85,0.00016986,2]
[351080411,1738326666089,-5924.82,0.00016986,2]
[351080412,1738326666098,-1937.38,0.00016986,2]
[351080413,1738326666107,-571.97,0.00016986,2]
[351080414,1738326666120,-1083.4,0.00016986,2]
[351080415,1738326666132,-595.17,0.00016986,2]
[351080416,1738326666142,-3371.15,0.00016986,2]
[351080417,1738326666153,-500.0,0.00016986,2]
[351080418,1738326666163,-2934.71,0.00016986,2]
[351080419,1738326666173,-1103.7,0.00016986,2]
[351080420,1738326666183,-500.0,0.00016986,2]
[351080421,1738326666193,-151.219779,0.00016986,2]
[351080422,1738326666203,-1084.81,0.00016986,2]
[351080423,1738326666212,-1010.59,0.00016986,2]
[351080424,1738326666221,-2002.74,0.00016986,2]
[351080425,1738326666230,-500.0,0.00016986,2]
[351080426,1738326666239,-2663.05,0.00016986,2]
[351080427,1738326666250,-500.0,0.00016986,2]
[351080428,1738326666259,-5797.26,0.00016986,2]
[351080429,1738326666268,-594.92,0.00016986,2]
[351080430,1738326666278,-526.98,0.00016986,2]
[351080431,1738326666288,-892.3,0.00016986,2]
[351080432,1738326666298,-500.0,0.00016986,2]
[351080433,1738326666307,-1125.38,0.00016986,2]
[351080434,1738326666320,-1337.93,0.00016986,2]
[351080435,1738326666330,-500.0,0.00016986,2]
[351080436,1738326666340,-2132.23,0.00016986,2]
[351080437,1738326666350,-1191.17,0.00016986,2]
[351080438,1738326666360,-1970.85,0.00016986,2]
[351080439,1738326666371,-1053.46,0.00016986,2]
[351080440,1738326666381,-823.99,0.00016986,2]
[351080441,1738326666391,-154.135675,0.00016986,2]
[351080442,1738326666400,-500.0,0.00016986,2]
[351080443,1738326666410,-2411.93,0.00016986,2]
[351080444,1738326666420,-2217.35,0.00016986,2]
[351080445,1738326666429,-474.42997763,0.00016986,2]
[351080446,1738326666448,-25.57002237,0.00016986,2]
[351080447,1738326666458,-500.0,0.00016986,2]
[351080448,1738326666467,-605.23,0.00016986,2]
[351080449,1738326666476,-1042.88,0.00016986,2]
[351080450,1738326666485,-314.008464,0.00016986,2]
[351080451,1738326666495,-500.0,0.00016986,2]
[351080452,1738326666504,-1176.72,0.00016986,2]
[351080453,1738326666514,-1715.86,0.00016986,2]
[351080454,1738326666523,-2038.46,0.00016986,2]
[351080455,1738326666534,-827.6,0.00016986,2]
[351080456,1738326666543,-806.82650963,0.00016986,2]
[351080457,1738326666556,-1049.07349037,0.00016986,2]
[351080458,1738326666565,-783.11,0.00016986,2]
[351080459,1738326666576,-500.0,0.00016986,2]